bitfinex-derivatives/quotes_SOLF0:USTF0_20250730
["timestamp","ask_amount","ask_price","bid_price","bid_amount"]
[1753853461022,3.03,180.76,180.73,3.01]
[1753853461224,3.03,180.72,180.71,3.01]
[1753853461525,1.74758752,180.75,180.73,3.01]
[1753853461724,4.65427267,180.84,180.73,1.74758752]
[1753853462026,4.77758752,180.77,180.74,3.01]
[1753853462223,4.77758752,180.77,180.75,3.01]
[1753853462825,3.03,180.76,180.75,3.01]
[1753853465529,4.77758752,180.77,180.75,3.01]
[1753853470325,1.74758752,180.77,180.75,5.5333]
[1753853470523,7.27978752,180.79,180.76,3.01]
[1753853470723,10.30978752,180.79,180.76,3.01]
[1753853472125,3.03,180.82,180.78,3.01]
[1753853472336,4.00350643,180.81,180.8,3.01]
[1753853472525,3.03,180.82,180.8,3.01]
[1753853472725,1.74758752,180.83,180.81,3.01]
[1753853473031,4.77758752,180.83,180.81,3.01]
[1753853473627,1.74758752,180.83,180.79,1.74758752]
[1753853473831,3.03,180.85,180.82,3.01]
[1753853474022,4.00113023,180.84,180.82,3.01]
[1753853474228,3.03,180.85,180.82,3.01]
[1753853475128,3.03,180.85,180.82,8.5409]
[1753853475330,5.5301,180.86,180.83,3.01]
[1753853475331,3.03,180.84,180.83,3.01]
[1753853476027,3.03,180.85,180.83,3.01]
[1753853476823,3.03,180.84,180.81,5.5314]
[1753853477335,3.03,180.84,180.82,3.01]
[1753853477535,3.03,180.84,180.83,3.01]
[1753853478430,8.56,180.86,180.83,3.01]
[1753853478830,3.03,180.86,180.84,3.01]
[1753853479333,3.03,180.85,180.79,2.72593267]
[1753853479638,3.03,180.85,180.8,3.01]
[1753853480937,5.5306,180.84,180.8,8.5417]
[1753853481138,5.75593267,180.84,180.78,3.01]
[1753853481432,3.22,180.81,180.78,3.01]
[1753853481641,3.22,180.79,180.78,3.01]
[1753853481841,3.22,180.79,180.76,3.08]
[1753853482137,5.5327,180.77,180.74,5.5335]
[1753853482337,8.7527,180.77,180.76,3.08]
[1753853482534,3.22,180.77,180.7,9.23592953]
[1753853482739,3.22,180.73,180.71,3.08]
[1753853483329,3.22,180.73,180.71,5.5344]
[1753853483539,2.72593267,180.76,180.72,3.08]
[1753853483738,5.533,180.77,180.72,8.614]
[1753853484041,3.22,180.76,180.73,3.08]
[1753853484337,5.5337,180.74,180.71,3.08]
[1753853484531,3.22,180.73,180.72,3.08]
[1753853485634,8.25933267,180.75,180.72,3.08]
[1753853485836,3.22,180.74,180.72,3.08]
[1753853486035,3.22,180.74,180.73,3.08]
[1753853487636,5.94593267,180.74,180.73,3.08]
[1753853488346,11.47953267,180.74,180.73,3.08]
[1753853488843,11.47953267,180.74,180.72,3.08]
[1753853489045,3.22,180.73,180.72,3.08]
[1753853490342,3.22,180.72,180.66,3.08]
[1753853490542,5.94593267,180.72,180.66,3.08]
[1753853490744,8.7546,180.71,180.67,5.5355]
[1753853490940,3.22,180.7,180.68,3.08]
[1753853491147,5.94593267,180.7,180.68,3.08]
[1753853491455,5.94593267,180.7,180.69,3.08]
[1753853491749,2.72593267,180.7,180.69,3.08]
[1753853492042,11.48023267,180.72,180.69,3.08]
[1753853492748,2.72593267,180.72,180.66,3.08]
[1753853492943,3.22,180.69,180.66,3.08]
[1753853494249,3.22,180.69,180.66,8.6161]
[1753853494449,3.22,180.69,180.67,3.08]
[1753853494950,5.94593267,180.7,180.67,3.08]
[1753853495145,2.72593267,180.72,180.67,3.08]
[1753853495348,3.22,180.71,180.67,3.08]
[1753853496242,8.7547,180.71,180.67,8.6157]
[1753853496444,8.7547,180.71,180.68,3.08]
[1753853496639,2.72593267,180.72,180.65,371.92]
[1753853496845,3.22,180.73,180.69,3.08]
[1753853497048,3.22,180.72,180.69,3.08]
[1753853498053,8.7543,180.72,180.69,3.08]
[1753853498350,8.7543,180.72,180.65,374.64593267]
[1753853498351,3.22,180.71,180.66,3.08]
[1753853498550,3.22,180.69,180.66,3.08]
[1753853498744,3.22,180.67,180.66,3.08]
[1753853499952,8.7558,180.67,180.66,3.08]
[1753853500148,3.22,180.66,180.61,3.08]
[1753853500351,5.5366,180.65,180.61,8.6175]
[1753853500652,3.22,180.65,180.63,3.08]
[1753853502052,5.5367,180.64,180.63,3.08]
[1753853502252,3.22,180.63,180.61,3.08]
[1753853502453,3.22,180.62,180.61,3.08]
[1753853503448,2.72593267,180.64,180.57,118.34]
[1753853503654,3.22,180.61,180.6,3.08]
[1753853505354,8.7576,180.61,180.6,3.08]
[1753853507058,5.538,180.6,180.57,118.34]
[1753853507262,3.22,180.59,180.57,118.34]
[1753853507761,3.22,180.61,180.58,3.08]
[1753853508562,8.26323267,180.62,180.59,3.08]
[1753853508759,5.94593267,180.62,180.59,3.08]
[1753853508959,3.22,180.61,180.59,3.08]
[1753853509866,3.22,180.61,180.6,3.08]
[1753853510270,8.7576,180.61,180.6,3.08]
[1753853512972,3.15,180.59,180.58,3.13]
[1753853515068,8.6882,180.59,180.57,118.34]
[1753853515272,3.15,180.58,180.57,121.47]
[1753853515670,8.6885,180.58,180.57,121.47]
[1753853515866,8.6885,180.58,180.57,3.13]
[1753853516070,3.15,180.57,180.51,121.47]
[1753853516275,5.87593267,180.55,180.52,3.13]
[1753853516771,5.87593267,180.55,180.53,3.13]
[1753853518370,5.87593267,180.55,180.52,3.13]
[1753853518569,3.15,180.54,180.53,3.13]
[1753853518766,2.72593267,180.55,180.53,3.13]
[1753853518971,2.72593267,180.55,180.52,3.13]
[1753853519177,3.15,180.54,180.52,3.13]
[1753853519374,5.87593267,180.55,180.52,3.13]
[1753853519567,3.15,180.57,180.52,3.13]
[1753853519969,5.87593267,180.57,180.53,3.13]
[1753853520566,3.15,180.61,180.53,3.13]
[1753853520770,2.72593267,180.6,180.53,3.13]
[1753853520967,5.5387,180.58,180.54,5.5397]
[1753853521176,3.15,180.57,180.55,3.13]
[1753853521570,8.6889,180.57,180.55,3.13]
[1753853521876,8.6889,180.57,180.56,3.13]
[1753853522573,5.87593267,180.6,180.56,3.13]
[1753853522768,2.72593267,180.62,180.56,3.13]
[1753853522963,5.87593267,180.64,180.57,3.13]
[1753853523567,5.5373,180.62,180.59,3.13]
[1753853523767,3.15,180.61,180.57,3.13]
[1753853523964,2.72593267,180.58,180.52,118.36]
[1753853524164,3.15,180.57,180.56,3.13]
[1753853525077,2.72593267,180.58,180.56,3.13]
[1753853525281,2.72593267,180.6,180.56,3.13]
[1753853525479,5.87593267,180.6,180.56,3.13]
[1753853525972,2.72593267,180.58,180.53,3.13]
[1753853526174,3.15,180.55,180.54,3.13]
[1753853526977,2.72593267,180.56,180.54,3.13]
[1753853527780,11.41523267,180.56,180.53,3.13]
[1753853527975,3.15,180.55,180.53,3.13]
[1753853528176,2.72593267,180.63,180.46,126.04038295]
[1753853528177,2.72593267,180.54,180.46,128.76631562]
[1753853528474,2.72593267,180.54,180.47,118.36]
[1753853528475,3.15,180.53,180.47,118.36]
[1753853528868,3.15,180.52,180.5,3.13]
[1753853529068,3.15,180.52,180.51,3.13]
[1753853529467,2.72593267,180.52,180.47,123.9018]
[1753853529671,3.15,180.5,180.49,3.13]
[1753853529879,2.72593267,180.52,180.48,3.13]
[1753853530078,5.87593267,180.52,180.48,3.13]
[1753853530379,2.72593267,180.52,180.48,3.13]
[1753853530679,3.15,180.51,180.48,3.13]
[1753853530876,5.5416,180.48,180.46,126.04038295]
[1753853531281,3.15,180.49,180.45,118.36]
[1753853531477,5.5422,180.46,180.45,118.36]
[1753853531778,2.72593267,180.48,180.45,118.36]
[1753853531975,5.87593267,180.48,180.46,3.13]
[1753853532176,3.15,180.47,180.46,3.13]
[1753853532573,8.6919,180.47,180.46,3.13]
[1753853532975,2.72593267,180.48,180.47,3.13]
[1753853533180,5.87593267,180.5,180.47,3.13]
[1753853533673,8.6913,180.49,180.48,3.13]
[1753853534277,5.5413,180.49,180.48,3.13]
[1753853534679,5.5409,180.51,180.49,3.13]
[1753853534879,3.15,180.51,180.49,3.13]
[1753853535179,3.15,180.51,180.5,3.13]
[1753853535678,3.15,180.51,180.46,3.13]
[1753853536283,5.5417,180.48,180.45,118.36]
[1753853536479,5.5417,180.48,180.46,3.13]
[1753853536480,3.15,180.48,180.46,3.13]
[1753853536781,3.15,180.47,180.46,3.13]
[1753853537282,3.15,180.47,180.44,3.13]
[1753853537483,3.15,180.46,180.45,3.13]
[1753853537684,8.6925,180.46,180.45,3.13]
[1753853537876,2.72593267,180.48,180.42,3.13]
[1753853538987,5.542,180.47,180.44,5.5426]
[1753853539188,5.542,180.47,180.45,3.13]
[1753853539378,3.15,180.46,180.4,3.13]
[1753853539584,2.72593267,180.46,180.4,118.4]
[1753853539780,3.15,180.44,180.41,3.13]
[1753853539981,8.6931,180.44,180.41,3.13]
[1753853540582,3.15,180.43,180.4,3.13]
[1753853541691,5.5436,180.42,180.4,3.13]
[1753853542282,8.7736,180.42,180.41,3.12]
[1753853542489,3.23,180.4,180.38,3.12]
[1753853542787,5.5439,180.41,180.38,3.12]
[1753853542982,5.5441,180.4,180.38,3.12]
[1753853543681,2.72593267,180.4,180.33,2.72593267]
[1753853543887,3.23,180.4,180.34,3.12]
[1753853544088,3.23,180.42,180.34,3.12]
[1753853544387,3.23,180.4,180.37,3.12]
[1753853544589,3.23,180.4,180.33,118.42]
[1753853544788,3.23,180.38,180.36,3.12]
[1753853544987,8.775,180.37,180.33,118.42]
[1753853545185,3.23,180.37,180.34,3.12]
[1753853545390,3.23,180.37,180.35,3.12]
[1753853545596,8.775,180.37,180.36,3.12]
[1753853546091,5.95593267,180.4,180.36,3.12]
[1753853546995,5.5446,180.39,180.36,3.12]
[1753853547284,5.5446,180.39,180.35,5.5455]
[1753853547285,2.72593267,180.38,180.35,3.12]
[1753853547494,3.23,180.37,180.34,3.12]
[1753853547681,3.23,180.36,180.35,3.12]
[1753853547883,3.23,180.36,180.33,118.42]
[1753853547884,2.72593267,180.36,180.33,118.42]
[1753853548085,5.95593267,180.36,180.34,3.12]
[1753853548281,3.23,180.35,180.34,3.12]
[1753853548985,3.23,180.35,180.29,3.12]
[1753853549190,5.95593267,180.33,180.29,3.12]
[1753853549392,2.72593267,180.33,180.29,3.12]
[1753853549591,2.72593267,180.33,180.31,3.12]
[1753853549786,2.72593267,180.36,180.31,3.12]
[1753853549989,5.95593267,180.36,180.31,3.12]
[1753853550192,3.23,180.35,180.28,121.62]
[1753853550492,2.72593267,180.45,180.29,3.12]
[1753853550493,3.23,180.32,180.29,3.12]
[1753853550789,5.95593267,180.33,180.29,3.12]
[1753853550996,2.72593267,180.35,180.29,3.12]
[1753853551188,2.72593267,180.33,180.29,3.12]
[1753853551385,3.23,180.32,180.28,118.5]
[1753853551589,3.23,180.32,180.3,3.12]
[1753853552091,3.23,180.32,180.31,3.12]
[1753853552286,2.72593267,180.45,180.29,3.12]
[1753853552491,2.72593267,180.33,180.29,3.12]
[1753853552690,3.23,180.34,180.29,3.12]
[1753853552892,2.72593267,180.35,180.29,3.12]
[1753853553396,3.23,180.34,180.29,3.12]
[1753853553597,3.23,180.33,180.29,3.12]
[1753853553891,3.23,180.33,180.3,5.547]
[1753853554093,3.23,180.33,180.32,3.12]
[1753853554801,8.7761,180.34,180.31,5.5468]
[1753853555095,8.7761,180.34,180.33,3.12]
[1753853555398,2.72593267,180.35,180.33,3.12]
[1753853555591,5.95593267,180.39,180.34,3.12]
[1753853556190,5.5447,180.38,180.35,3.12]
[1753853556596,5.95593267,180.39,180.36,5.5452]
[1753853556900,5.95593267,180.39,180.38,3.12]
[1753853557194,11.50023267,180.39,180.38,3.12]
[1753853558192,2.72593267,180.41,180.38,3.12]
[1753853558395,3.23,180.42,180.38,3.12]
[1753853558698,5.95593267,180.43,180.39,3.12]
[1753853559795,5.95593267,180.45,180.39,3.12]
[1753853560491,2.72593267,180.46,180.41,3.12]
[1753853560697,5.95593267,180.46,180.41,3.12]
[1753853560897,8.7722,180.46,180.41,8.6635]
[1753853561095,4.65427267,180.52,180.41,3.12]
[1753853561096,5.95593267,180.49,180.41,3.12]
[1753853561400,3.23,180.5,180.43,3.12]
[1753853561794,2.72593267,180.51,180.45,3.12]
[1753853561994,3.23,180.52,180.45,3.12]
[1753853562902,2.72593267,180.53,180.46,2.72593267]
[1753853563098,2.72593267,180.55,180.47,3.12]
[1753853563400,5.95593267,180.55,180.49,3.12]
[1753853563600,3.23,180.53,180.49,3.12]
[1753853564300,5.5406,180.52,180.49,3.12]
[1753853564501,2.72593267,180.51,180.48,3.12]
[1753853564699,3.23,180.5,180.48,3.12]
[1753853564904,8.7712,180.5,180.48,3.12]
[1753853565193,3.23,180.5,180.48,3.12]
[1753853565500,5.5413,180.49,180.48,3.12]
[1753853566103,8.7713,180.49,180.48,3.12]
[1753853566599,3.23,180.52,180.47,3.12]
[1753853566895,2.72593267,180.53,180.47,3.12]
[1753853567103,5.5407,180.51,180.47,3.12]
[1753853568597,5.5407,180.51,180.47,8.6619]
[1753853568804,3.23,180.54,180.48,3.12]
[1753853569400,2.72593267,180.55,180.48,3.12]
[1753853569800,5.5405,180.52,180.49,3.12]
[1753853572105,8.5005,180.52,180.49,3.12]
[1753853572802,5.5405,180.52,180.49,3.12]
[1753853573003,8.5005,180.52,180.49,3.12]
[1753853574209,2.96,180.61,180.5,3.23]
[1753853574410,2.96,180.56,180.5,3.23]
[1753853574805,2.96,180.56,180.51,3.23]
[1753853575109,2.96,180.58,180.51,5.95593267]
[1753853575306,2.72593267,180.59,180.54,3.23]
[1753853575307,2.96,180.59,180.54,3.23]
[1753853575709,2.96,180.6,180.54,3.23]
[1753853576105,2.72593267,180.61,180.52,5.5401]
[1753853576310,2.96,180.59,180.57,3.23]
[1753853577210,5.5385,180.58,180.57,3.23]
[1753853577710,8.4985,180.58,180.57,3.23]
[1753853577914,2.96,180.6,180.53,2.72593267]
[1753853578109,2.96,180.6,180.54,3.23]
[1753853578613,8.498,180.6,180.55,5.5392]
[1753853578807,8.498,180.6,180.56,3.23]
[1753853579010,2.96,180.6,180.56,3.23]
[1753853579215,8.4984,180.59,180.56,3.23]
[1753853580511,5.538,180.6,180.56,3.23]
[1753853580712,2.96,180.61,180.56,3.23]
[1753853581110,2.96,180.61,180.57,3.23]
[1753853581317,2.96,180.62,180.53,2.72593267]
[1753853581518,2.96,180.62,180.58,3.23]
[1753853582223,5.5382,180.6,180.56,3.23]
[1753853582423,5.68593267,180.63,180.56,3.23]
[1753853583018,2.72593267,180.63,180.56,3.23]
[1753853583220,2.96,180.62,180.56,3.23]
[1753853583420,2.96,180.61,180.58,3.23]
[1753853583620,2.72593267,180.63,180.58,3.23]
[1753853583818,2.72593267,180.65,180.58,3.23]
[1753853584016,2.96,180.66,180.59,2.72593267]
[1753853584216,2.96,180.66,180.6,3.23]
[1753853584924,8.4966,180.65,180.61,3.23]
[1753853585226,2.96,180.65,180.61,3.23]
[1753853585517,2.72593267,180.67,180.59,2.72593267]
[1753853585518,372.5,180.73,180.59,2.72593267]
[1753853585818,372.5,180.73,180.62,3.23]
[1753853585819,2.96,180.68,180.62,3.23]
[1753853586123,2.72593267,180.67,180.63,3.23]
[1753853586321,2.96,180.65,180.63,3.23]
[1753853586716,2.96,180.64,180.61,3.23]
[1753853586920,5.68593267,180.65,180.62,3.23]
[1753853587120,5.5367,180.64,180.62,3.23]
[1753853587521,5.5367,180.64,180.63,3.23]
[1753853587716,8.4967,180.64,180.63,3.23]
[1753853588128,8.4972,180.63,180.59,5.5381]
[1753853588325,8.4972,180.63,180.61,3.23]
[1753853588526,8.4972,180.63,180.62,3.23]
[1753853589223,2.96,180.63,180.62,3.23]
[1753853589415,5.5367,180.64,180.62,3.23]
[1753853589621,2.96,180.66,180.6,3.23]
[1753853590025,5.5372,180.63,180.6,3.23]
[1753853590328,2.96,180.63,180.6,3.23]
[1753853590524,5.5376,180.61,180.57,8.26463267]
[1753853590729,5.5376,180.61,180.58,3.23]
[1753853590930,5.5376,180.61,180.53,118.58]
[1753853590931,2.96,180.6,180.56,3.23]
[1753853591127,2.96,180.6,180.56,8.7691]
[1753853591428,2.96,180.6,180.54,3.23]
[1753853591618,8.4995,180.55,180.54,3.23]
[1753853591824,2.96,180.57,180.54,3.23]
[1753853592129,2.96,180.57,180.56,3.23]
[1753853592326,11.22473267,180.57,180.56,3.23]
[1753853592520,5.68593267,180.57,180.55,3.23]
[1753853592824,2.96,180.56,180.55,3.23]
[1753853593526,2.96,180.56,180.5,3.23]
[1753853594032,2.96,180.56,180.51,5.5404]
[1753853594329,2.96,180.56,180.52,3.23]
[1753853594826,5.5398,180.54,180.52,3.23]
[1753853595528,2.96,180.55,180.5,5.5409]
[1753853595832,2.96,180.55,180.54,3.23]
[1753853596132,2.96,180.56,180.55,3.23]
[1753853596532,8.4991,180.56,180.55,3.23]
[1753853597031,2.72593267,180.57,180.53,3.23]
[1753853597240,2.96,180.55,180.53,3.23]
[1753853597530,2.96,180.54,180.53,3.23]
[1753853597828,2.72593267,180.55,180.5,3.23]
[1753853597829,2.96,180.53,180.5,3.23]
[1753853599028,2.72593267,180.53,180.47,8.7718]
[1753853599232,2.96,180.52,180.49,3.23]
[1753853599427,2.72593267,180.53,180.49,3.23]
[1753853599630,2.96,180.52,180.49,3.23]
[1753853599825,2.96,180.51,180.49,3.23]
[1753853600027,2.96,180.51,180.48,3.23]
[1753853600224,2.96,180.52,180.49,3.23]
[1753853600634,8.5004,180.52,180.49,3.23]
[1753853601334,5.5407,180.51,180.47,5.5416]
[1753853601540,2.96,180.52,180.48,3.01]
[1753853601733,2.96,180.52,180.49,3.01]
[1753853602529,5.5407,180.51,180.49,3.01]
[1753853602830,5.5407,180.51,180.5,3.01]
[1753853603038,8.6612,180.5,180.48,3.01]
[1753853603532,8.6612,180.5,180.49,3.01]
[1753853604037,5.5416,180.48,180.46,118.6]
[1753853604236,5.5416,180.48,180.43,198.34697302]
[1753853604237,8.6616,180.48,180.47,3.01]
[1753853604532,2.72593267,180.49,180.44,3.01]
[1753853604733,3.12,180.47,180.44,3.01]
[1753853606338,2.72593267,180.49,180.45,3.01]
[1753853606635,8.26723267,180.49,180.45,5.5425]
[1753853606834,8.26723267,180.49,180.46,3.01]
[1753853607337,11.38723267,180.49,180.44,5.5427]
[1753853607631,3.12,180.48,180.45,3.01]
[1753853607829,3.12,180.47,180.45,3.01]
[1753853608025,8.26803267,180.47,180.45,3.01]
[1753853608230,11.38803267,180.47,180.45,3.01]
[1753853609225,8.26803267,180.47,180.46,3.01]
[1753853609431,5.5417,180.48,180.43,201.16414035]
[1753853609731,8.6617,180.48,180.47,3.01]
[1753853610237,5.542,180.47,180.45,3.01]
[1753853610436,8.662,180.47,180.46,3.01]
[1753853611333,5.542,180.47,180.46,3.01]
[1753853611936,4.65427267,180.56,180.46,3.01]
[1753853612135,2.72593267,180.51,180.46,3.01]
[1753853612332,3.12,180.5,180.46,3.01]
[1753853612534,5.5413,180.49,180.46,3.01]
[1753853613138,8.6613,180.49,180.46,3.01]
[1753853613340,8.6613,180.49,180.46,5.5422]
[1753853613542,8.6613,180.49,180.48,3.01]
[1753853615934,5.84593267,180.53,180.46,3.01]
[1753853616139,5.84593267,180.53,180.47,3.01]
[1753853616344,2.72593267,180.53,180.47,3.01]
[1753853616840,8.26623267,180.53,180.49,5.5411]
[1753853617041,3.12,180.54,180.5,3.01]
[1753853617436,5.5402,180.53,180.5,3.01]
[1753853618439,5.5404,180.52,180.5,3.01]
[1753853618743,3.12,180.52,180.51,3.01]
[1753853618946,8.6603,180.52,180.51,3.01]
[1753853619949,5.5403,180.52,180.51,3.01]
[1753853620153,8.6603,180.52,180.51,3.01]
[1753853620351,8.6608,180.51,180.48,3.01]
[1753853621049,5.5404,180.52,180.48,3.01]
[1753853621250,3.12,180.54,180.48,3.01]
[1753853621854,3.12,180.52,180.47,3.01]
[1753853622248,3.12,180.51,180.47,3.01]
[1753853622450,2.72593267,180.53,180.46,118.54]
[1753853622957,3.12,180.52,180.47,3.01]
[1753853623254,5.5412,180.5,180.47,3.01]
[1753853623453,3.12,180.52,180.47,3.01]
[1753853623649,5.5415,180.49,180.48,3.01]
[1753853624255,8.6615,180.49,180.48,3.01]
[1753853624651,5.5421,180.47,180.46,3.01]
[1753853624851,8.6621,180.47,180.46,3.01]
[1753853626458,8.6622,180.46,180.45,121.51]
[1753853627157,8.6622,180.46,180.45,3.01]
[1753853628860,8.6622,180.46,180.43,195.62104035]
[1753853628861,8.6628,180.44,180.43,3.01]
[1753853629054,11.38873267,180.44,180.43,3.01]
[1753853630362,5.5434,180.42,180.41,118.48]
[1753853630663,5.5434,180.42,180.41,121.49]
[1753853630856,5.84593267,180.44,180.42,3.01]
[1753853631057,5.5431,180.43,180.42,3.01]
[1753853632260,8.6331,180.43,180.42,3.01]
[1753853632561,3.09,180.41,180.33,2.72593267]
[1753853632763,5.81593267,180.41,180.35,2.97]
[1753853632961,5.5447,180.38,180.36,2.97]
[1753853633766,2.72593267,180.41,180.35,2.97]
[1753853633962,5.81593267,180.41,180.35,2.97]
[1753853634561,2.72593267,180.41,180.35,2.97]
[1753853636269,2.72593267,180.41,180.37,5.5448]
[1753853636270,8.26973267,180.41,180.37,5.5448]
[1753853636567,8.26973267,180.41,180.38,2.97]
[1753853637268,8.6341,180.4,180.39,2.97]
[1753853637969,8.26973267,180.41,180.39,2.97]
[1753853638169,11.35973267,180.41,180.4,2.97]
[1753853638870,8.26973267,180.41,180.4,2.97]
[1753853639071,2.72593267,180.43,180.4,2.97]
[1753853639267,5.81593267,180.45,180.4,2.97]
[1753853639768,5.5429,180.44,180.4,5.5438]
[1753853639968,5.81593267,180.45,180.38,2.97]
[1753853640167,3.09,180.44,180.38,2.97]
[1753853640372,8.6338,180.41,180.4,2.97]
[1753853640664,2.72593267,180.43,180.4,2.97]
[1753853640869,5.5435,180.42,180.4,2.97]
[1753853641368,8.6335,180.42,180.41,2.97]
[1753853644064,3.09,180.42,180.39,2.97]
[1753853644265,3.09,180.4,180.39,2.97]
[1753853645364,8.634,180.4,180.39,2.97]
[1753853646170,5.5447,180.38,180.36,2.97]
[1753853647172,5.545,180.37,180.36,2.97]
[1753853647370,5.81593267,180.39,180.36,2.97]
[1753853647571,2.72593267,180.39,180.36,2.97]
[1753853647869,8.27053267,180.39,180.36,2.97]
[1753853648767,5.5447,180.38,180.36,2.97]
[1753853650269,8.27043267,180.39,180.36,2.97]
[1753853650469,2.72593267,180.41,180.38,2.97]
[1753853650870,5.5443,180.4,180.38,2.97]
[1753853651173,3.09,180.4,180.36,2.97]
[1753853651374,3.09,180.39,180.36,2.97]
[1753853651978,5.81593267,180.41,180.36,2.97]
[1753853652469,8.26973267,180.41,180.37,5.5449]
[1753853652670,8.26973267,180.41,180.38,2.97]
[1753853652872,5.81593267,180.43,180.38,2.97]
[1753853653167,5.5432,180.43,180.38,2.97]
[1753853653373,2.72593267,180.45,180.38,2.97]
[1753853653374,5.81593267,180.45,180.38,2.97]
[1753853653770,5.5429,180.44,180.4,5.5438]
[1753853654071,2.72593267,180.45,180.41,2.97]
[1753853654375,5.5432,180.43,180.41,2.97]
[1753853655776,8.6328,180.44,180.41,8.5136]
[1753853655978,3.09,180.46,180.39,2.72593267]
[1753853656274,3.09,180.46,180.4,2.97]
[1753853656473,8.6324,180.46,180.42,5.5432]
[1753853656673,8.6324,180.46,180.43,2.97]
[1753853657076,5.5424,180.46,180.43,5.5431]
[1753853657375,5.5424,180.46,180.44,2.97]
[1753853657578,5.5419,180.47,180.44,2.97]
[1753853657776,2.72593267,180.49,180.44,2.97]
[1753853657977,3.09,180.48,180.44,2.97]
[1753853658378,8.6316,180.48,180.45,5.5425]
[1753853658581,3.09,180.49,180.46,2.97]
[1753853658874,2.72593267,180.51,180.46,2.97]
[1753853659079,8.6315,180.49,180.46,2.97]
[1753853660084,3.09,180.47,180.46,2.97]
[1753853660284,3.09,180.48,180.45,2.97]
[1753853660581,3.09,180.48,180.42,2.97]
[1753853660879,8.6326,180.45,180.41,124.0436]
[1753853661082,3.09,180.44,180.39,2.97]
[1753853661377,3.09,180.44,180.32,372.52]
[1753853661378,8.7836,180.42,180.4,2.97]
[1753853661581,3.24,180.41,180.4,2.97]
[1753853661794,5.5436,180.42,180.39,3.06]
[1753853662584,8.7836,180.42,180.39,3.06]
[1753853663783,8.26913267,180.43,180.39,5.5442]
[1753853663982,5.96593267,180.47,180.4,3.06]
[1753853664182,3.24,180.46,180.4,3.06]
[1753853664488,5.543,180.44,180.41,3.06]
[1753853664692,3.24,180.46,180.41,3.06]
[1753853665692,5.5427,180.45,180.42,5.5434]
[1753853665884,3.24,180.46,180.44,3.06]
[1753853666088,3.24,180.45,180.44,3.06]
[1753853666893,8.7825,180.45,180.44,3.06]
[1753853667396,5.5431,180.44,180.42,3.06]
[1753853667987,2.72593267,180.47,180.42,3.06]
[1753853668186,3.24,180.49,180.43,2.72593267]
[1753853668392,2.72593267,180.51,180.47,5.5419]
[1753853668393,5.5412,180.5,180.47,5.5419]